[Event "7th Porticcio Open 2022"]
[Site "Porticcio"]
[Date "2022.07.02"]
[Round "1.1"]
[White "David, Alberto"]
[Black "Morison, Julien"]
[Result "1-0"]
[ECO "C60"]
[WhiteElo "2534"]
[BlackElo "1880"]
[Annotator "TA"]
[PlyCount "55"]
[EventDate "2022.07.02"]
[EventType "swiss"]
[EventCountry "FRA"]
[SourceTitle "playchess.com"]
[Source "ChessBase"]
[SourceQuality "1"]
[TimeControl "5400+30"]

{[%evp 9,55,41,104,104,105,105,105,106,114,94,125,133,147,140,135,134,131,110,143,135,161,154,156,157,164,155,175,163,164,179,270,276,268,275,277,274,751,751,29992,29993,29993,-132,29994,29995,29996,29997,29997,29998]} 1. e4 {[%emt 0:00:12]} e5 {[%emt 0:00:05]} 2. Nf3 {[%emt 0:00:05]} Nc6 {[%emt 0:00:04]} 3. Bb5 {[%emt 0:00:05]} g6 {[%emt 0:00:06]} 4. c3 {[%emt 0:00:20]} Bg7 {[%emt 0:00:39]} 5. d4 {[%emt 0:00:13]} a6 {[%emt 0:00:08]} (5... exd4 $14 6. cxd4 a6) 6. Bxc6 $16 {[%emt 0:04:28] C60: Ruy Lopez: Unusual Black 3rd moves and 3...g6.} dxc6 {[%emt 0:00:29]} 7. Nxe5 {[%emt 0:00:06]} Bxe5 {[%emt 0:00:23]} 8. dxe5 {[%emt 0:00:05] White is better.} Qxd1+ {[%emt 0:00:04]} 9. Kxd1 {[%emt 0:00:06]} Bg4+ {[%emt 0:00:03]} 10. f3 {[%emt 0:00:17]} O-O-O+ {[%emt 0:00:06]} 11. Kc2 {[%emt 0:01:12]} Be6 {[%emt 0:00:06] [#]} 12. Bg5 $146 {[%emt 0:00:40]} ({Predecessor:} 12. b3 c5 13. c4 c6 14. Nc3 b5 15. Ne2 bxc4 16. Nf4 cxb3+ 17. axb3 Kb7 18. Nxe6 fxe6 19. Bg5 Rd7 20. Rhd1 Rd4 21. Be3 {1-0 (21) Pirhala,L (2327)-Enoksson,B (1531) ICCF email 2017}) 12... Re8 {[%emt 0:00:40]} 13. Nd2 {[%emt 0:00:21][%cal Bb1d2,Bd2b3,Bb3c5][%mdl 32]} Bd7 {[%emt 0:01:00]} 14. Be3 $1 {[%emt 0:00:56] White is more active.} f5 {[%emt 0:00:52]} 15. exf6 {[%emt 0:00:06]} Nxf6 {[%emt 0:00:05]} 16. a4 {[%emt 0:01:09][%cal Ba2a4,Ba4a5][%mdl 32]} Rhf8 {[%emt 0:00:15]} 17. Nb3 {[%emt 0:02:00]} b6 {[%emt 0:01:28]} 18. a5 {[%emt 0:00:06]} Kb7 {[%emt 0:00:08]} 19. Rhd1 {[%emt 0:01:57]} c5 {[%emt 0:03:43]} (19... Rf7 $142 20. Bg5 Nxe4 21. fxe4 Rxe4) 20. axb6 $18 {[%emt 0:01:08]} cxb6 {[%emt 0:00:21] [#]} 21. Bxc5 $1 {[%emt 0:02:33][%mdl 512]} bxc5 {[%emt 0:00:09]} 22. Nxc5+ {[%emt 0:00:04]} Kc6 $2 {[%emt 0:00:59]} (22... Kc7 23. Nxa6+ (23. Rxa6 Bc8 $18) 23... Kc6 24. Nb4+ Kb7) 23. Rxa6+ {[%emt 0:03:37]} Kxc5 {[%emt 0:00:43]} 24. b4+ {[%emt 0:00:05]} Kc4 {[%emt 0:01:46] [#]} 25. Rd4+ $1 {[%emt 0:01:33]} ({Weaker is} 25. Ra5 Ba4+ 26. Rxa4 Ra8 27. Rxa8 Rxa8 $18) 25... Kb5 {[%emt 0:00:06]} 26. Rdd6 {[%emt 0:00:05] White mates.} Kc4 {[%emt 0:02:19]} 27. Ra5 {[%emt 0:00:29][%csl Gb4][%cal Ra5c5]} Ba4+ {[%emt 0:00:48]} 28. Kb2 {[%emt 0:00:16] Weighted Error Value: White=0.01 (flawless) /Black=0.48} 1-0

[Event "7th Porticcio Open 2022"]
[Site "Porticcio"]
[Date "2022.07.02"]
[Round "1.2"]
[White "Guien, Philippe"]
[Black "Mastrovasilis, Athanasios"]
[Result "0-1"]
[ECO "A13"]
[WhiteElo "1860"]
[BlackElo "2527"]
[Annotator "TA"]
[PlyCount "37"]
[EventDate "2022.07.02"]
[EventType "swiss"]
[EventCountry "FRA"]
[SourceTitle "playchess.com"]
[Source "ChessBase"]
[SourceQuality "1"]
[TimeControl "5400+30"]

{[%evp 9,37,0,9,-9,-3,-15,-9,-3,0,0,0,-39,-7,-10,-10,-54,-50,-45,-31,-60,70,27,26,-167,-171,-168,-188,-196,-189,-193]} 1. c4 {[%emt 0:00:03]} e6 {[%emt 0:00:24]} 2. g3 {[%emt 0:00:15]} d5 {[%emt 0:00:18]} 3. Bg2 {[%emt 0:00:18]} Nf6 {[%emt 0:00:20]} 4. Nf3 {[%emt 0:00:09]} dxc4 {[%emt 0:02:08]} 5. O-O {[%emt 0:00:27]} Nbd7 {[%emt 0:00:58]} 6. a4 {[%emt 0:02:14] A13: English Opening: 1...e6.} a5 {[%emt 0:07:11]} 7. Qc2 {[%emt 0:01:58]} Nb6 {[%emt 0:02:01]} 8. Rd1 {[%emt 0:07:52] The position is equal.} Nfd5 {[%emt 0:07:51] [#]} 9. d4 $146 {[%emt 0:08:33]} ({Predecessor:} 9. Ne5 Nb4 10. Qc3 N4d5 11. Qc2 Nb4 12. Qc3 N4d5 13. Qd4 Qf6 14. Nc3 Bd6 15. f4 {½-½ (45) Ornstein,A (2408)-Jepson,C (2399) Sweden 2011}) 9... Bd6 {[%emt 0:07:59]} 10. Bg5 {[%emt 0:09:47]} f6 {[%emt 0:01:28]} 11. Bd2 {[%emt 0:00:09]} Bd7 $36 {[%emt 0:08:19][%mdl 2048] White is under pressure.} 12. e4 {[%emt 0:05:48]} Nb4 {[%emt 0:00:30]} 13. Bxb4 {[%emt 0:00:30]} axb4 {[%emt 0:04:27]} 14. a5 {[%emt 0:01:54] [#]} b3 {[%emt 0:09:13]} (14... Ba4 $1 $15 15. Rxa4 b3) 15. Qe2 {[%emt 0:08:38] Threatens to win with Nc3.} Bb4 {[%emt 0:00:58]} 16. axb6 {[%emt 0:03:25] This costs White the game.} Rxa1 $19 {[%emt 0:01:24] Black is clearly better.} 17. Qxc4 Ba5 {[%emt 0:00:36]} 18. d5 {[%emt 0:02:13]} e5 {[%emt 0:01:34]} (18... Bxb6 $2 19. dxe6 Qe7 20. exd7+ Kd8 21. Nfd2 $18) 19. Nfd2 {Weighted Error Value: White=0.38/Black=0.16 (very precise)} 0-1

[Event "7th Porticcio Open 2022"]
[Site "Porticcio"]
[Date "2022.07.02"]
[Round "1.3"]
[White "Peng, Li Min"]
[Black "Cardi, Jean"]
[Result "1-0"]
[ECO "A05"]
[WhiteElo "2516"]
[BlackElo "1835"]
[Annotator "TA"]
[PlyCount "71"]
[EventDate "2022.07.02"]
[EventType "swiss"]
[EventCountry "FRA"]
[SourceTitle "playchess.com"]
[Source "ChessBase"]
[SourceQuality "1"]
[TimeControl "5400+30"]

{[%evp 16,71,29,19,35,16,16,3,8,10,31,-230,-94,-87,21,-28,14,15,23,24,22,-35,0,0,26,25,27,9,16,13,38,16,13,0,18,0,32,0,37,47,42,43,42,32,40,37,25,0,91,43,102,104,2927,3053,2879,2990,2266,1910]} 1. Nf3 {[%emt 0:00:02]} Nf6 {[%emt 0:00:09]} 2. c4 {[%emt 0:00:08]} g6 {[%emt 0:01:16]} 3. b3 {[%emt 0:00:08]} Bg7 {[%emt 0:00:30]} 4. Bb2 {[%emt 0:00:26]} O-O {[%emt 0:01:00]} 5. g3 {[%emt 0:00:54]} c6 {[%emt 0:01:34]} 6. Bg2 {[%emt 0:00:13]} d5 {[%emt 0:00:31]} 7. O-O {[%emt 0:00:15]} Nbd7 {[%emt 0:02:56]} 8. Qc2 {[%emt 0:00:10]} Re8 {[%emt 0:00:59]} 9. d4 {[%emt 0:00:16]} Ne4 {[%emt 0:01:49] A11: English Opening: 1...c6.} 10. cxd5 {[%emt 0:08:01]} cxd5 {[%emt 0:05:14]} 11. Rc1 {[%emt 0:00:07]} Ndf6 {[%emt 0:08:35] [#] The position is equal.} 12. Ne5 $146 {[%emt 0:06:18]} ({Predecessor:} 12. Nbd2 Nd6 13. Qc7 Bg4 14. Qxd8 Raxd8 15. h3 Bf5 16. Ne5 {½-½ (16) Dugovic,B (2207)-Arendas,M (2104) Slovakia 2015}) 12... Bf5 {[%emt 0:05:22][%cal Oe4f2] [#] Strongly threatening ...Nxf2!} 13. g4 $2 {[%emt 0:06:18][%mdl 8192]} (13. Qd1 $1 $14) 13... Rc8 {[%emt 0:16:11]} (13... Nxg4 $19 {and Black stays clearly on top.} 14. Bxe4 Bxe4) 14. Qd1 $17 {[%emt 0:00:06]} Be6 {[%emt 0:14:05]} (14... Nxg4 $17 15. Nxg4 Bxg4) 15. f3 {[%emt 0:01:46]} (15. Rxc8 $142 Qxc8 16. f3) 15... Nd6 {[%emt 0:02:06]} (15... Bh6 {seems wilder.} 16. fxe4 Be3+ 17. Kf1 Bxc1 18. Bxc1 dxe4 19. Na3 Bxg4 20. Kg1 Bf5) 16. Rxc8 {[%emt 0:00:58]} Bxc8 {[%emt 0:01:54]} 17. Nc3 {[%emt 0:00:23][%cal Bb1c3,Bc3e2,Be2g3][%mdl 32]} e6 {[%emt 0:00:53]} 18. e4 {[%emt 0:02:05]} (18. e3 $11) 18... Nd7 {[%emt 0:07:53]} (18... b5 $5 {[%cal Rb5b4]}) 19. Nxd7 {[%emt 0:02:12]} Qxd7 {[%emt 0:03:21]} 20. e5 {[%emt 0:02:24] [#] aiming for Qd3.} ({But not} 20. exd5 exd5 21. Qd2 (21. Nxd5 Nb5 $15) 21... h5 $15) 20... Nb5 {[%emt 0:00:12]} 21. Ne2 {[%emt 0:00:06]} b6 {[%emt 0:03:13]} 22. Qd2 Ba6 {[%emt 0:01:52]} 23. a4 {[%emt 0:05:32]} Nc7 {[%emt 0:00:08]} 24. Ng3 {[%emt 0:01:29]} Rc8 {[%emt 0:02:59]} 25. f4 {[%emt 0:00:05][%cal Of4f5]} Bh6 {[%emt 0:00:57]} 26. Rc1 {[%emt 0:09:02]} Ne8 {[%emt 0:01:47]} 27. Rxc8 {[%emt 0:00:04]} Qxc8 {[%emt 0:00:04]} 28. Ba3 {[%emt 0:00:05]} Nc7 {[%emt 0:03:50]} 29. Kf2 {[%emt 0:02:18]} Bf8 {[%emt 0:04:59]} 30. Bxf8 {[%emt 0:00:14]} Qxf8 {[%emt 0:00:02]} 31. f5 {[%emt 0:00:07]} f6 {[%emt 0:01:06]} (31... Qa3 $11) 32. Qc3 {[%emt 0:03:39]} (32. exf6 $16 {Threatens to win with Qf4.} Qxf6 33. g5) 32... Ne8 {[%emt 0:01:47]} (32... Qd8 $14) 33. Qc6 $16 {[%emt 0:01:19] White is more active.} Qb4 $2 {[%emt 0:03:59][%mdl 8192]} 34. Qxe8+ $18 {[%emt 0:00:19] White is clearly winning.} Kg7 {[%emt 0:00:10]} 35. exf6+ {[%emt 0:00:27]} Kh6 {[%emt 0:00:25]} 36. Qxe6 {[%emt 0:00:11] Weighted Error Value: White=0.30/Black=0.41} 1-0

[Event "7th Porticcio Open 2022"]
[Site "Porticcio"]
[Date "2022.07.02"]
[Round "1.4"]
[White "Aeschbacher, Dimitri"]
[Black "Maurizzi, Marc Andria"]
[Result "0-1"]
[ECO "C02"]
[WhiteElo "1831"]
[BlackElo "2506"]
[Annotator "TA"]
[PlyCount "71"]
[EventDate "2022.07.02"]
[EventType "swiss"]
[EventCountry "FRA"]
[SourceTitle "playchess.com"]
[Source "ChessBase"]
[SourceQuality "1"]
[TimeControl "5400+30"]

{[%evp 14,71,16,3,4,0,42,39,40,34,35,35,39,29,34,0,33,0,29,0,0,-10,0,-14,0,0,0,-8,0,-22,-8,-18,-11,-12,-5,-14,-9,-22,0,-156,-89,-175,-170,-182,-141,-309,-297,-358,-353,-348,-342,-857,-834,-1114,-1107,-1090,-1065,-29998,-29999,-29999]} 1. e4 {[%emt 0:00:03]} c5 {[%emt 0:00:21]} 2. Nf3 {[%emt 0:00:06]} e6 {[%emt 0:00:01]} 3. c3 {[%emt 0:01:53]} d5 {[%emt 0:00:35]} 4. e5 {[%emt 0:01:12]} Nc6 {[%emt 0:01:11]} 5. d4 {[%emt 0:00:16]} Bd7 {[%emt 0:00:01]} 6. Bd3 {[%emt 0:00:50]} Rc8 {[%emt 0:01:16]} 7. a3 {[%emt 0:01:49]} cxd4 {[%emt 0:01:05]} 8. cxd4 {[%emt 0:00:16]} Qb6 {[%emt 0:00:07] C02: French: Advance Variation.} 9. Bc2 {[%emt 0:00:25]} Nge7 {[%emt 0:02:29][%cal Og7g5]} (9... g5 $5 {[%cal Rg5g4]} 10. h3 (10. Bxg5 Qxb2 11. Nbd2 Nxd4 $17) 10... Nge7 $11) 10. O-O {[%emt 0:00:09]} Nf5 {[%emt 0:00:23] White is slightly better.} 11. Bxf5 {[%emt 0:00:22]} exf5 {[%emt 0:00:13]} 12. Nc3 {[%emt 0:00:08]} Be6 {[%emt 0:00:01]} 13. Na4 {[%emt 0:03:47]} Qb5 {[%emt 0:00:25]} 14. Nc3 {[%emt 0:00:20]} Qa6 {[%emt 0:04:04] [#]} 15. Bf4 $146 {[%emt 0:03:54]} ({Predecessor:} 15. Be3 Be7 16. Ne1 g5 17. f3 h5 18. Qd2 Na5 19. Bxg5 Nb3 20. Qd1 Bxg5 21. f4 Nxa1 22. fxg5 {½-½ (70) Kim,T (1593)-De Oliveira,G (2001) Sao Bento do Sul 2019}) 15... Be7 {[%emt 0:00:20]} 16. Rc1 {[%emt 0:04:57]} O-O {[%emt 0:00:45]} 17. Bg5 {[%emt 0:08:34]} Bxg5 {[%emt 0:01:26]} 18. Nxg5 {[%emt 0:00:01]} h6 {[%emt 0:00:06]} 19. Nxe6 {[%emt 0:01:02]} fxe6 {[%emt 0:00:01]} 20. Ne2 {[%emt 0:02:44]} f4 {[%emt 0:00:33]} 21. Rc3 {[%emt 0:01:30]} f3 {[%emt 0:04:17]} 22. Rxf3 {[%emt 0:02:34]} Rxf3 {[%emt 0:00:02]} 23. gxf3 {[%emt 0:00:11]} Ne7 {[%emt 0:00:22][%cal Bc6e7,Be7g6,Bg6h4,Bh4f5][%mdl 32]} 24. Qd2 {[%emt 0:01:42]} Ng6 {[%emt 0:05:16][%mdl 1024] Black has compensation.} 25. f4 {[%emt 0:05:56]} Nh4 $36 {[%emt 0:00:26][%mdl 2048] [#] Hoping for ...Nf3+. Black has the initiative.} 26. f3 $2 {[%emt 0:01:23]} (26. Qd1 $1 $11) 26... Qc4 {[%emt 0:01:16]} (26... Qa4 $142 {...Rc2 is the strong threat.} 27. Nc3 Qb3) 27. Nc3 {[%emt 0:01:40]} (27. Qe1 $17) 27... Nf5 {[%emt 0:00:49]} 28. Rd1 {[%emt 0:00:13]} Qb3 {[%emt 0:00:17]} 29. Kh1 $2 {[%emt 0:04:39] [#] Loses the game.} (29. Qc1 $17 {is a better defense.}) 29... Rc4 $19 {[%emt 0:04:11][%cal Bc8c4,Bc4d4,Bd4d2][%mdl 32]} 30. Rg1 {[%emt 0:07:47]} Rxd4 {[%emt 0:00:39]} 31. Qg2 {[%emt 0:00:08]} Kf7 {[%emt 0:01:28]} ({Weaker is} 31... Rxf4 32. Qg6 d4 33. Qe8+ Kh7 34. Qg6+ Kh8 35. Qe8+ Kh7 36. Qg6+ Kh8 37. Qe8+ Kh7 $11) 32. Ne2 $2 {[%emt 0:01:05]} (32. Ne4 dxe4 33. fxe4) 32... Rd2 {[%emt 0:00:31]} 33. Qg6+ {[%emt 0:00:48]} Ke7 {[%emt 0:00:08]} 34. Nd4 {[%emt 0:01:38]} Rxd4 {[%emt 0:00:16] Active counter play!} 35. Qh7 {[%emt 0:00:49]} Qxf3+ {[%emt 0:00:05]} 36. Rg2 {[%emt 0:00:01] Weighted Error Value: White=0.75/Black=0.07 (flawless)} 0-1

[Event "7th Porticcio Open 2022"]
[Site "Porticcio"]
[Date "2022.07.02"]
[Round "1.5"]
[White "Yankelevich, Lev"]
[Black "Chokbengboun, Thomas"]
[Result "1-0"]
[ECO "D30"]
[WhiteElo "2496"]
[BlackElo "1817"]
[Annotator "TA"]
[PlyCount "83"]
[EventDate "2022.07.02"]
[EventType "swiss"]
[EventCountry "FRA"]
[SourceTitle "playchess.com"]
[Source "ChessBase"]
[SourceQuality "1"]
[TimeControl "5400+30"]

{[%evp 18,83,82,80,140,143,170,167,209,212,188,179,176,167,169,160,168,177,194,170,168,161,161,162,177,182,174,172,177,175,195,201,200,195,228,200,282,264,260,212,300,297,292,292,283,274,324,332,330,315,357,358,297,296,352,321,366,365,350,364,362,335,517,505,464,353,481,474]} 1. d4 {[%emt 0:00:30]} d5 {[%emt 0:00:17]} 2. c4 {[%emt 0:00:35]} e6 {[%emt 0:00:16]} 3. Nf3 {[%emt 0:00:12]} Nf6 {[%emt 0:01:29]} 4. g3 {[%emt 0:00:04]} Nbd7 {[%emt 0:01:31]} 5. Bg2 {[%emt 0:00:07]} Be7 {[%emt 0:00:36]} 6. O-O {[%emt 0:00:09]} b6 {[%emt 0:01:15]} 7. cxd5 {[%emt 0:00:15]} exd5 {[%emt 0:00:15]} 8. Ne5 {[%emt 0:04:46]} Bb7 {[%emt 0:00:27]} 9. Qa4 {[%emt 0:00:07]} O-O {[%emt 0:00:48]} 10. Nc3 {[%emt 0:02:14]} a6 {[%emt 0:01:12] E18: Queen's Indian: Old Main Line (4 g3 Bb7 5 Bg2 Be7 6 0-0 0-0 7 Nc3).} (10... Nxe5 $142 11. dxe5 Nd7) 11. Nxd7 $16 {[%emt 0:00:22] White is much more active. The black rooks are badly placed.} Nxd7 {[%emt 0:02:23]} 12. Nxd5 {[%emt 0:00:07]} (12. Bxd5 Bxd5 13. Nxd5 Nf6 14. Nxf6+ (14. Nxe7+ Qxe7 15. e3 Rfd8 $16) 14... Bxf6 $16) 12... Bxd5 {[%emt 0:01:20] White is clearly better.} 13. Bxd5 {[%emt 0:00:07]} Ra7 {[%emt 0:00:37] [#]} 14. Bc6 $146 {[%emt 0:02:17]} ({Predecessor:} 14. Rd1 Nf6 15. Bf3 b5 16. Qb3 Qd7 17. e4 c6 18. Bf4 h6 19. Rac1 Rd8 20. Qc3 {1-0 (29) Luna Javier,E (2114)-Jayaweera,C (1781) Tornelo INT 2020}) 14... Nb8 {[%emt 0:01:15]} 15. Bf3 {[%emt 0:00:13]} c5 {[%emt 0:02:20]} 16. dxc5 {[%emt 0:00:24]} Bxc5 {[%emt 0:00:32]} 17. Rd1 {[%emt 0:01:06]} Rd7 {[%emt 0:01:35]} 18. Rxd7 {[%emt 0:02:56]} Qxd7 {[%emt 0:00:12]} 19. Qxd7 {[%emt 0:00:04]} Nxd7 {[%emt 0:00:06][%cal Bb8d7,Bd7f6,Bf6e4][%mdl 32]} 20. Bf4 {[%emt 0:00:05] Inhibits Ne5.} h6 {[%emt 0:02:46]} 21. Rd1 {[%emt 0:00:47]} Nf6 {[%emt 0:00:26]} 22. h4 {[%emt 0:00:22]} Re8 {[%emt 0:01:26]} 23. e3 {[%emt 0:00:40]} Kh7 {[%emt 0:02:23]} 24. Kf1 {[%emt 0:02:19]} Re7 {[%emt 0:05:11]} 25. Ke2 {[%emt 0:00:45]} Ne4 {[%emt 0:03:49]} 26. Rd5 {[%emt 0:01:42]} g6 {[%emt 0:03:49]} (26... a5 {was called for.} 27. g4 Nf6) 27. Be5 $18 {[%emt 0:04:19]} f6 {[%emt 0:02:27]} 28. Bb8 {[%emt 0:01:55]} ({Don't take} 28. Bxe4 $6 Rxe5 29. Rxe5 fxe5 $16) 28... Kg7 {[%emt 0:02:20]} (28... f5 $142 29. h5 Nf6) 29. a3 {[%emt 0:01:14]} a5 {[%emt 0:00:32]} 30. Bxe4 {[%emt 0:00:20]} Rxe4 {[%emt 0:00:13][%mdl 4096] Endgame KRB-KRB} 31. Bd6 {[%emt 0:00:12]} Rc4 {[%emt 0:02:35]} 32. Bxc5 {[%emt 0:00:07]} bxc5 {[%emt 0:00:37] KR-KR} 33. Rd7+ {[%emt 0:00:08]} Kf8 {[%emt 0:00:22]} 34. Kd2 {[%emt 0:00:15] [#] Against Rc2+. Black must now prevent f3.} a4 {[%emt 0:01:11]} 35. Rd3 {[%emt 0:00:27] aiming for f3.} Rg4 {[%emt 0:01:30]} 36. Kc3 {[%emt 0:00:52]} h5 {[%emt 0:01:56]} 37. Rd5 {[%emt 0:00:38]} g5 {[%emt 0:00:26]} 38. hxg5 {[%emt 0:00:11]} ({Weaker is} 38. Rxc5 gxh4 39. Rxh5 hxg3 40. fxg3 Rxg3 $16) 38... fxg5 {[%emt 0:01:04]} 39. Rxc5 {[%emt 0:00:24]} h4 {[%emt 0:00:22]} (39... Kg7 {was worth a try.} 40. Kd2 h4 41. gxh4 gxh4) 40. gxh4 {[%emt 0:00:03]} gxh4 {[%emt 0:00:11]} 41. Rh5 {[%emt 0:00:05]} Kg7 {[%emt 0:00:42]} 42. f3 {[%emt 0:00:03] Black got outplayed after the opening.  Weighted Error Value: White=0.03 (flawless) /Black=0.35} 1-0

[Event "7th Porticcio Open 2022"]
[Site "Porticcio"]
[Date "2022.07.02"]
[Round "1.6"]
[White "Ratier-Fontana, Matteo"]
[Black "Rakotomaharo, Fy Antenaina"]
[Result "0-1"]
[ECO "B30"]
[WhiteElo "1804"]
[BlackElo "2490"]
[Annotator "TA"]
[PlyCount "46"]
[EventDate "2022.07.02"]
[EventType "swiss"]
[EventCountry "FRA"]
[SourceTitle "playchess.com"]
[Source "ChessBase"]
[SourceQuality "1"]
[TimeControl "5400+30"]

{[%evp 15,46,0,0,-18,-14,-51,-44,-66,-45,-50,-43,-60,-50,-77,-54,-91,-14,-89,-21,-131,-135,-168,-149,-342,-332,-496,-483,-714,-702,-695,-669,-2812,-2709]} 1. e4 c5 {[%emt 0:00:06]} 2. Nf3 {[%emt 0:00:09]} Nc6 {[%emt 0:00:39]} 3. d3 {[%emt 0:00:05]} g6 4. g3 Bg7 {[%emt 0:00:36]} 5. Bg2 {[%emt 0:00:20]} Nf6 6. O-O O-O {[%emt 0:00:48]} 7. Re1 {[%emt 0:00:25]} d6 {[%emt 0:03:45][%cal Bd7d6,Bd6d5][%mdl 32]} 8. Nbd2 {[%emt 0:00:35]} e5 9. Nf1 {[%emt 0:00:00] A05: Réti Opening: 1 Nf3 Nf6.} d5 {[%emt 0:00:44]} 10. Bg5 {[%emt 0:02:49] Hoping for exd5.} d4 {[%emt 0:00:45]} 11. Qd2 {[%emt 0:01:23] [#] Black is slightly better.} Qd6 $146 {[%emt 0:02:58]} ({Predecessor:} 11... Qc7 12. h4 Ne8 13. Bh6 f6 14. N3h2 Be6 15. c3 dxc3 16. bxc3 Bxh6 17. Qxh6 Qa5 {0-1 (51) Sobrino Figueredo,Y-Oliva Castaneda,K (2114) Matanzas 2007}) 12. Bh6 Bd7 {[%emt 0:03:45]} 13. Bxg7 {[%emt 0:04:29]} Kxg7 {[%emt 0:00:05]} 14. h4 b5 15. N1h2 {[%emt 0:03:28]} c4 {[%emt 0:02:07]} (15... h6 $17) 16. Rec1 {[%emt 0:01:50]} (16. c3 $11) 16... a5 {[%emt 0:04:37]} ({Black should try} 16... b4 $17 {Threatens to win with ...c3.} 17. h5 c3 18. h6+ Kg8 19. bxc3 bxc3) 17. Ne1 {[%emt 0:00:44] [#]} (17. c3 $1 $11) 17... a4 $1 $36 {[%emt 0:03:42][%mdl 2048] Black has strong initiative. Black is much more active.} 18. c3 {[%emt 0:07:02]} a3 {[%emt 0:09:11]} 19. Rab1 $2 {[%emt 0:08:49] This move loses the game for White.} (19. bxa3 $17 dxc3 20. Rxc3) 19... axb2 $19 {[%emt 0:01:41]} 20. Rxb2 {[%emt 0:02:18]} (20. Qxb2 $142 b4 21. cxb4) 20... b4 {[%emt 0:02:04] Black is clearly winning.} 21. dxc4 {[%emt 0:01:59]} (21. cxb4 $142 c3 22. Rxc3 dxc3 23. Qxc3) 21... bxc3 {[%emt 0:02:38]} 22. Rxc3 {[%emt 0:00:08] [#]} dxc3 $1 {[%emt 0:00:06]} 23. Qh6+ {[%emt 0:00:21]} (23. Qxc3 Rfb8) 23... Kxh6 {[%emt 0:00:08] Weighted Error Value: White=1.11/Black=0.20 (precise)} 0-1